Cogmind - Beta 14 --- EXPLORER MODE // 2024.08.15 @ 16:21:52 Player: Kino Result: Self-destructed Performance ------------- Evolutions (4) 2000 Regions Visited (9) 1800 Robots Destroyed (84) 420 Value Destroyed (2986) 2986 Prototype IDs (1) 20 Alien Tech Used (0) 0 Bonus (22) 22 TOTAL SCORE: 7248 Bonus ------- High Alert Combat Kills 22 Cogmind --------- Core Integrity 199/850 Matter 46/300 Energy 46/100 System Corruption 1% Temperature Cool (12) Movement Core (50) Location -6/Factory Parts ------- > --- POWER (2) -------- (None) > --- PROPULSION (4) --- (None) > --- UTILITY (7) ------ Targeting Computer > --- WEAPON (3) ------- (None) > --- INVENTORY (5) ---- (None) Peak State ------------ > --- POWER ------------ Deuterium Engine Deuterium Engine > --- PROPULSION ------- Aluminum Leg Aluminum Leg Aluminum Leg Improved Carbon-fiber Leg > --- UTILITY ---------- Improved Heat Sink Coolant Injector Huge Storage Unit Signal Interpreter Improved Medium Armor Plating System Shield System Shield > --- WEAPON ----------- Shock Rifle Gatling Laser Advanced Assault Cannon > --- INVENTORY -------- Micro Nuclear Core Aluminum Leg Structural Scanner Signal Interpreter Targeting Computer Advanced ECM Suite Power Shielding Power Shielding Shock Absorption System Improved EM Pulse Cannon Ion Cannon Heavy Assault Rifle Heavy Assault Rifle Improved Light Cannon Battle Cannon Advanced Assault Cannon Precision Grenade Launcher Mining Laser [Rating: 47] Favorites ----------- Power Deuterium Engine Engine Deuterium Engine Power Core Light Nuclear Core Propulsion Aluminum Leg Leg Aluminum Leg Utility Huge Storage Unit Device Improved Heat Sink Storage Huge Storage Unit Processor Signal Interpreter Hackware System Shield Protection Propulsion Shielding Weapon Rocket Launcher Energy Gun EM Pulse Gun Energy Cannon Heavy Particle Cannon Ballistic Gun Light Assault Rifle Ballistic Cannon Flak Cannon Launcher Rocket Launcher Build | -11 -10 -10 -9 -9 -8 -7 -6 -6 -6 ------- Run | Yrd Mat Min Mat Min Mat Fac Fac Was Fac Slots Evolved 9 | . 1 . 2 . 2 2 2 . . Power 1 | . . . . . . . 1 . . Propulsion 2 | . 1 . 1 . . . . . . Utility 5 | . . . 1 . 2 2 . . . Weapon 1 | . . . . . . . 1 . . Parts Attached 99 | 8 17 1 12 2 15 20 6 7 11 Power 14 | 1 3 . 3 . 1 2 1 1 2 Engine 10 | 1 3 . 3 . . 1 1 . 1 Core 4 | . . . . . 1 1 . 1 1 Reactor . | . . . . . . . . . . Propulsion 34 | 2 9 . 6 . 5 5 2 . 5 Treads . | . . . . . . . . . . Leg 34 | 2 9 . 6 . 5 5 2 . 5 Wheel . | . . . . . . . . . . Hover . | . . . . . . . . . . Flight . | . . . . . . . . . . Utility 20 | 2 . 1 1 . 5 7 2 1 1 Device 7 | . . . . . 1 6 . . . Storage 3 | 1 . 1 . . 1 . . . . Processor 4 | 1 . . 1 . 1 . . . 1 Hackware 2 | . . . . . 1 . 1 . . Protection 4 | . . . . . 1 1 1 1 . Artifact . | . . . . . . . . . . Weapon 31 | 3 5 . 2 2 4 6 1 5 3 Energy Gun 11 | 2 3 . 1 . . 3 . . 2 Energy Cannon 5 | . . . . 1 2 1 . 1 . Ballistic Gun 4 | 1 2 . . . . . . 1 . Ballistic Cannon 7 | . . . . 1 1 1 1 2 1 Launcher 4 | . . . 1 . 1 1 . 1 . Special Weapon . | . . . . . . . . . . Impact Weapon . | . . . . . . . . . . Slashing Weapon . | . . . . . . . . . . Piercing Weapon . | . . . . . . . . . . Special Melee Weapon . | . . . . . . . . . . Unidentified Prototypes 1 | . . . . . . 1 . . . Corrupted Parts 4 | . 1 . 2 . . . . . 1 System Corruption 5 | . 2 . 2 . . . . . 1 Parts Lost 32 | . 1 . 1 . 3 8 . 10 9 Power 4 | . . . . . . . . 2 2 Propulsion 9 | . . . . . 1 2 . 2 4 Utility 8 | . . . . . 1 4 . 3 . Weapon 11 | . 1 . 1 . 1 2 . 3 3 Highest Loss Streak 9 | . 1 . 1 . 1 3 . 9 9 To Critical Strikes . | . . . . . . . . . . Average Slot Usage (%) 92 | . 88 100 80 100 98 96 90 49 44 Engine 7 | . 11 12 8 10 6 1 12 5 4 Core 1 | . . . . . 1 4 . . 4 Leg 30 | . 28 37 23 40 32 27 25 10 21 Device 4 | . . . . . 1 17 12 6 . Storage 8 | . 12 12 10 10 8 7 6 3 . Processor 15 | . 12 12 18 20 16 13 6 3 5 Hackware 3 | . . . . . 8 7 7 7 . Protection 1 | . . . . . 6 1 1 5 . Energy Gun 4 | . 8 25 12 . . 3 12 5 1 Energy Cannon 3 | . . . . 3 8 5 . . . Ballistic Gun 1 | . 12 . . . . . . . . Ballistic Cannon 3 | . . . . 5 1 5 6 2 4 Launcher 4 | . . . 6 10 6 . . . . Peak Build Rating 47 | 7 9 8 19 22 31 40 47 47 31 Average Rating 23 | 4 7 8 11 19 27 36 41 23 25 On Entrance 17 | . 7 8 8 19 22 31 35 47 . Naked Turns 19 | . . . . . . . . 7 12 Heaviest Build 120 | 19 18 87 96 100 101 111 120 120 26 Greatest Support 58 | 20 30 30 46 46 51 51 48 48 58 Greatest Overweight (x) 6 | . 1 2 4 2 6 5 2 2 . Average Overweight (x) 1 | . . . 3 2 1 1 2 . . Largest Inventory Capacity 25 | 10 10 25 25 25 25 25 25 25 5 Average Capacity 22 | 9 10 12 25 25 25 25 25 15 5 Most Carried 25 | 7 10 8 21 22 25 25 22 19 5 Average Carried 17 | 3 8 6 14 18 22 21 18 11 1 Final Capacity 25 | 10 10 25 25 25 25 25 25 5 5 Final Carried 25 | 5 6 8 18 22 25 22 19 3 . Class Distribution -------------------- 95% | Hacker-Mutant 4% | Hacker-Bomber Dominant Class ---------------- Hacker-Mutant | -10/Materials Hacker-Mutant | -10/Mines Hacker-Mutant | -9/Materials Hacker-Mutant | -9/Mines Hacker-Mutant | -8/Materials Hacker-Mutant | -7/Factory Hacker-Bomber | -6/Factory Hacker-Mutant | -6/Waste Hacker-Mutant | -6/Factory Resources | -11 -10 -10 -9 -9 -8 -7 -6 -6 -6 ----------- Run | Yrd Mat Min Mat Min Mat Fac Fac Was Fac Matter Collected 1516 | 263 132 101 149 121 285 245 124 . 96 Remotely . | . . . . . . . . . . Salvage Created 2688 | . 350 118 301 64 1077 722 42 . 14 Parts 182 | . 23 4 27 2 75 48 3 . . Haulers Intercepted 1 | . . . . . 1 . . . . Recyclers Shooed 3 | . 1 . . . . 2 . . . Parts Field Recycled . | . . . . . . . . . . Retrieved Matter . | . . . . . . . . . . Parts Self-Destructed . | . . . . . . . . . . Prevented . | . . . . . . . . . . Kills | -11 -10 -10 -9 -9 -8 -7 -6 -6 -6 ------- Run | Yrd Mat Min Mat Min Mat Fac Fac Was Fac Combat Hostiles Destroyed 63 | . 8 2 9 2 24 16 1 . 1 Guns 20 | . 7 2 7 . . 2 1 . 1 Cannons 31 | . . . . . 17 14 . . . AOE 11 | . . . 2 2 7 . . . . Classes Destroyed 15 | . 4 1 1 . 5 4 . . . Worker 4 | . . . . . 3 1 . . . Builder 4 | . . 1 . . 2 1 . . . Tunneler 1 | . . . . . 1 . . . . Hauler 1 | . . . . . 1 . . . . Recycler 1 | . 1 . . . . . . . . Mechanic 2 | . . . . . 1 1 . . . Operator 1 | . . . . . . 1 . . . Watcher 7 | . 2 . 1 . 2 2 . . . Swarmer 14 | . 4 . 5 . 3 2 . . . Grunt 24 | . 4 2 . 2 14 2 . . . Brawler 1 | . . . . . . 1 . . . Duelist 1 | . . . . . 1 . . . . Sentry 14 | . . . 4 . 6 3 . . 1 Hunter 2 | . . . . . . 2 . . . Programmer 7 | . . . . . . 6 1 . . Best Kill Streak 9 | . 4 3 4 2 9 5 1 . 1 Combat Bots Only 6 | . 4 2 4 2 6 4 1 . 1 Max Kills in Single Turn 3 | . 1 1 2 1 3 2 1 . 1 Gunslinging 1 | . . . 1 . . . . . . Exploded 2 | . . . 1 1 2 . . . . Melee . | . . . . . . . . . . Uniques/NPCs Destroyed . | . . . . . . . . . . Combat | -11 -10 -10 -9 -9 -8 -7 -6 -6 -6 -------- Run | Yrd Mat Min Mat Min Mat Fac Fac Was Fac Hostile Shots Fired 685 | . 67 7 40 3 93 220 4 11 240 Missed 231 | . 24 2 10 1 22 77 . . 95 Damage Taken 4387 | . 278 41 300 12 855 1295 36 357 1213 Core 1151 | . 36 6 87 . 191 180 9 281 361 Absorbed by Shields . | . . . . . . . . . . Redirected to Shielding 51 | . . . . . 51 . . . . Ignored by Resistances 2744 | . 184 26 184 8 474 882 23 200 763 Core Remaining (%) 80 | 100 . 83 . 78 65 74 . . . Volleys Fired 190 | . 35 6 18 2 56 47 2 6 18 Largest 3 | . 2 2 2 2 2 2 3 3 1 Hottest 178 | . 70 80 89 113 135 130 178 178 63 Shots Fired 313 | . 64 12 33 4 79 86 6 11 18 Gun 134 | . 64 12 28 . . 12 4 6 8 Cannon 160 | . . . . 2 68 74 2 4 10 Launcher 19 | . . . 5 2 11 . . 1 . Special . | . . . . . . . . . . Kinetic 91 | . 36 . . . 5 35 2 3 10 Thermal 134 | . 7 . 5 2 63 44 2 3 8 Explosive 19 | . . . 5 2 11 . . 1 . Electromagnetic 69 | . 21 12 23 . . 7 2 4 . Robot Hit Streak 40 | . 40 13 28 13 22 35 4 14 6 Robot Miss Streak 3 | . 2 1 1 . 2 3 1 1 1 Penetration Max . | . . . . . . . . . . Secondary Targets 4 | . 1 1 2 . . . . . . Max Gunslinging Chain 1 | . 1 1 1 . . . . . . Shots Hit Robots 257 | . 55 11 29 4 60 70 3 10 15 Core Hits 169 | . 21 6 17 2 51 63 3 1 5 Critical Kills . | . . . . . . . . . . Critical Parts Destroyed . | . . . . . . . . . . Critical Strikes 3 | . . 1 1 . . 1 . . . Burn 1 | . . . 1 . . . . . . Corrupt 2 | . . 1 . . . 1 . . . Melee Attacks . | . . . . . . . . . . Impact . | . . . . . . . . . . Slashing . | . . . . . . . . . . Piercing . | . . . . . . . . . . Sneak Attacks . | . . . . . . . . . . Combat Hostiles . | . . . . . . . . . . Follow-up Attacks . | . . . . . . . . . . Damage Inflicted 6731 | . 602 159 443 200 2490 2231 58 252 296 Guns 1479 | . 564 148 294 . . 195 58 98 122 Cannons 3306 | . . . . 49 1315 1690 . 78 174 Explosions 1827 | . 30 . 138 133 1120 330 . 76 . Melee . | . . . . . . . . . . Ramming 119 | . 8 11 11 18 55 16 . . . Kinetic 1229 | . 225 . . . 71 683 . 76 174 Thermal 3146 | . 94 . 60 49 1244 1426 55 96 122 Explosive 1426 | . . . 97 133 1120 . . 76 . Electromagnetic 811 | . 275 148 275 . . 106 3 4 . Impact . | . . . . . . . . . . Slashing . | . . . . . . . . . . Piercing . | . . . . . . . . . . Highest Corruption 7 | . 2 2 2 2 . 7 . . 1 Average Corruption 2 | . 2 2 1 2 . 5 . . 1 Corruption Purged . | . . . . . . . . . . Corruption Blocked . | . . . . . . . . . . Effects 91 | . 5 1 11 28 . 44 . . 2 Message Errors 26 | . 1 . 3 9 . 12 . . 1 Matter Fused 19 | . 2 . 1 9 . 7 . . . Heat Flow Errors 11 | . . 1 . 5 . 5 . . . Energy Discharges 10 | . . . 3 3 . 4 . . . Parts Rejected 2 | . . . . . . 2 . . . Data Loss (minor) 8 | . 1 . 2 1 . 4 . . . Data Loss (major) 6 | . . . . 1 . 4 . . 1 Misfires 3 | . 1 . . . . 2 . . . Alerts 4 | . . . 2 . . 2 . . . Weapon Failures 2 | . . . . . . 2 . . . Overload Shots . | . . . . . . . . . . Overflow Damage 241 | . . . . . 36 205 . . . Projectiles 9 | . . . . . 7 2 . . . Explosions 229 | . . . . . 26 203 . . . Melee 3 | . . . . . 3 . . . . Knockbacks 16 | . . 1 . . 1 14 . . . Impact 1 | . . 1 . . . . . . . Kinetic 15 | . . . . . 1 14 . . . Secondary . | . . . . . . . . . . Self-Inflicted Damage 517 | . . . 57 . 82 343 . 35 . Shots 16 | . . . 3 . 5 7 . 1 . Rammed . | . . . . . . . . . . Targets Rammed 16 | . 3 1 2 2 6 2 . . . Kicked 16 | . 3 1 2 2 6 2 . . . Crushed . | . . . . . . . . . . Highest Temperature 544 | . 94 373 72 179 544 248 132 131 381 Average Temperature 91 | . 35 196 24 74 124 40 71 72 135 Received Heat Transfer 1875 | . 153 39 135 12 477 273 . . 786 Effects 15 | . . 2 . . 11 . . . 2 Shutdowns 2 | . . . . . 2 . . . . Energy Bleed 3 | . . 1 . . 1 . . . 1 Interference 3 | . . . . . 3 . . . . Matter Decay 1 | . . . . . . . . . 1 Damage (minor) 2 | . . 1 . . 1 . . . . Damage (major) 3 | . . . . . 3 . . . . Damage (core) 1 | . . . . . 1 . . . . Siege Activations . | . . . . . . . . . . Robots Corrupted 1 | . 1 . . . . . . . . Combat Hostiles 1 | . 1 . . . . . . . . Parts Fried 4 | . . 2 1 . . 1 . . . Impact Corruptions 1 | . . . . . 1 . . . . Robots Melted . | . . . . . . . . . . Combat Hostiles . | . . . . . . . . . . Parts Melted 5 | . 1 . . 1 3 . . . . Heat Transferred 4991 | . 185 . 222 100 2080 1820 100 225 259 Parts Sabotaged . | . . . . . . . . . . Parts Stolen . | . . . . . . . . . . Parts Stripped . | . . . . . . . . . . Power Chain Reactions 2 | . 1 . . . . 1 . . . Alert | -11 -10 -10 -9 -9 -8 -7 -6 -6 -6 ------- Run | Yrd Mat Min Mat Min Mat Fac Fac Was Fac Peak Influence 449 | . 281 56 222 77 449 286 46 10 75 Initial 48 | . . 1 15 20 20 48 . 10 . Average 60 | . 52 16 51 16 143 64 17 2 16 Maximum Alert Level 2 | . 1 . 1 . 2 1 . . . Low Security (%) 89 | 100 87 100 89 100 64 96 100 100 100 Level 1 9 | . 12 . 10 . 31 3 . . . Level 2 . | . . . . . 3 . . . . Level 3 . | . . . . . . . . . . Level 4 . | . . . . . . . . . . Level 5 . | . . . . . . . . . . High Security . | . . . . . . . . . . Max Security . | . . . . . . . . . . Squads Dispatched 11 | . . . . 1 4 4 2 . . Investigation 1 | . . . . 1 . . . . . Extermination 4 | . . . . . . 3 1 . . Reinforcement 6 | . . . . . 4 1 1 . . Assault . | . . . . . . . . . . Garrison . | . . . . . . . . . . Intercept . | . . . . . . . . . . Searches Triggered . | . . . . . . . . . . Construction Impeded 4 | . . . . . 3 1 . . . Haulers Reinforced . | . . . . . . . . . . Active Scanning Responses . | . . . . . . . . . . Cargo Convoy Interrupts . | . . . . . . . . . . Stealth | -11 -10 -10 -9 -9 -8 -7 -6 -6 -6 --------- Run | Yrd Mat Min Mat Min Mat Fac Fac Was Fac Distress Signals 6 | . 2 . 2 . 1 1 . . . Communications Jammed . | . . . . . . . . . . Distress Signals . | . . . . . . . . . . Times Spotted 108 | . 14 2 15 2 34 26 3 6 6 Peak Tracking Total 6 | . 5 2 3 2 5 5 1 6 5 Tactical Retreats 4 | . 2 . . . 1 . . . 1 Traps | -11 -10 -10 -9 -9 -8 -7 -6 -6 -6 ------- Run | Yrd Mat Min Mat Min Mat Fac Fac Was Fac Traps Triggered 10 | . 5 . 2 . . 1 2 . . Indirectly . | . . . . . . . . . . Trap Hack Attempts . | . . . . . . . . . . Triggered . | . . . . . . . . . . Disarmed 4 | . . . . . 4 . . . . Reprogrammed . | . . . . . . . . . . Reused . | . . . . . . . . . . Traps Extracted . | . . . . . . . . . . Installed . | . . . . . . . . . . Triggered 1 | . . . . 1 . . . . . Machines | -11 -10 -10 -9 -9 -8 -7 -6 -6 -6 ---------- Run | Yrd Mat Min Mat Min Mat Fac Fac Was Fac Machines Disabled 19 | . . . 2 . 1 16 . . . Max in Single Turn 13 | . . . 2 . 1 13 . . . Machines Repaired . | . . . . . . . . . . Machines Dismantled . | . . . . . . . . . . Machines Sabotaged . | . . . . . . . . . . Overloaded Fab Kills . | . . . . . . . . . . Hacking | -11 -10 -10 -9 -9 -8 -7 -6 -6 -6 --------- Run | Yrd Mat Min Mat Min Mat Fac Fac Was Fac Machines Accessed 7 | . 1 1 . 1 3 1 . . . Terminals 5 | . 1 1 . . 3 . . . . Fabricators 1 | . . . . . . 1 . . . Repair Stations . | . . . . . . . . . . Recycling Units . | . . . . . . . . . . Scanalyzers . | . . . . . . . . . . Garrison Access . | . . . . . . . . . . Total Hacks 8 | . 1 1 . 1 4 1 . . . Successful 7 | . 1 1 . 1 3 1 . . . Failed 1 | . . . . . 1 . . . . Catastrophic . | . . . . . . . . . . Database Lockouts . | . . . . . . . . . . Manual . | . . . . . . . . . . Terminals 6 | . 1 1 . . 4 . . . . Fabricators 1 | . . . . . . 1 . . . Repair Stations . | . . . . . . . . . . Recycling Units . | . . . . . . . . . . Scanalyzers . | . . . . . . . . . . Garrison Access . | . . . . . . . . . . Terminal Hacks 6 | . 1 1 . 1 3 . . . . Open Door 1 | . . . . 1 . . . . . Alert Level 2 | . . . . . 2 . . . . Disarm Traps 1 | . . . . . 1 . . . . Zone Layout 2 | . 1 1 . . . . . . . Fabricator Hacks 1 | . . . . . . 1 . . . Network Status 1 | . . . . . . 1 . . . Repair Station Hacks . | . . . . . . . . . . Recycling Unit Hacks . | . . . . . . . . . . Scanalyzer . | . . . . . . . . . . Garrison Access Hacks . | . . . . . . . . . . Unauthorized Hacks . | . . . . . . . . . . Terminals . | . . . . . . . . . . Fabricators . | . . . . . . . . . . Repair Stations . | . . . . . . . . . . Recycling Units . | . . . . . . . . . . Scanalyzers . | . . . . . . . . . . Garrison Access . | . . . . . . . . . . Data Cores Recovered . | . . . . . . . . . . Used . | . . . . . . . . . . Hacking Detections . | . . . . . . . . . . Full Trace Events . | . . . . . . . . . . Feedback Events . | . . . . . . . . . . Feedback Blocked . | . . . . . . . . . . Robot Schematics Acquired . | . . . . . . . . . . Robots Built . | . . . . . . . . . . Authchips . | . . . . . . . . . . Time . | . . . . . . . . . . Total Robot Build Rating . | . . . . . . . . . . Part Schematics Acquired . | . . . . . . . . . . Parts Built . | . . . . . . . . . . Authchips . | . . . . . . . . . . Time . | . . . . . . . . . . Total Part Build Rating . | . . . . . . . . . . Parts Repaired . | . . . . . . . . . . Time . | . . . . . . . . . . Parts Recycled . | . . . . . . . . . . Recycled Matter . | . . . . . . . . . . Retrieved Matter . | . . . . . . . . . . Retrieved Components . | . . . . . . . . . . Parts Scanalyzed . | . . . . . . . . . . Part Schematics Acquired . | . . . . . . . . . . Parts Damaged . | . . . . . . . . . . Bothacking | -11 -10 -10 -9 -9 -8 -7 -6 -6 -6 ------------ Run | Yrd Mat Min Mat Min Mat Fac Fac Was Fac Used RIF Installer . | . . . . . . . . . . Robots Hacked . | . . . . . . . . . . Non-combat . | . . . . . . . . . . Combat . | . . . . . . . . . . Robot Hacks Applied . | . . . . . . . . . . Relay Couplers Released . | . . . . . . . . . . Fabnet Peak Effective % . | . . . . . . . . . . Robots Rewired . | . . . . . . . . . . Allies Hacked . | . . . . . . . . . . Hacks Repelled . | . . . . . . . . . . Allies | -11 -10 -10 -9 -9 -8 -7 -6 -6 -6 -------- Run | Yrd Mat Min Mat Min Mat Fac Fac Was Fac Total Allies 2 | . . . . 1 . . . 1 . Largest Group 1 | . . . . 1 . . . 1 . Highest-Rated Group 31 | . . . . 31 . . . 31 . Highest-Rated Ally 31 | . . . . 31 . . . 31 . Total Orders . | . . . . . . . . . . Ally Attacks 8 | . . . . . . . . 8 . Total Damage 127 | . . . . . . . . 127 . Kills . | . . . . . . . . . . Allies Corrupted . | . . . . . . . . . . Allies Melted . | . . . . . . . . . . Intel | -11 -10 -10 -9 -9 -8 -7 -6 -6 -6 ------- Run | Yrd Mat Min Mat Min Mat Fac Fac Was Fac Robot Analysis Total . | . . . . . . . . . . Derelict Logs Recovered . | . . . . . . . . . . Drone Launches . | . . . . . . . . . . Drone Recoveries . | . . . . . . . . . . Exploration | -11 -10 -10 -9 -9 -8 -7 -6 -6 -6 ------------- Run | Yrd Mat Min Mat Min Mat Fac Fac Was Fac Turns Passed 8153 | 70 680 188 1179 1984 1667 1712 340 125 208 Spaces Moved 3253 | 48 416 127 305 683 674 608 123 120 149 Core 131 | 11 . . . . . . . 102 18 Treads . | . . . . . . . . . . Legs 3122 | 37 416 127 305 683 674 608 123 18 131 Wheels . | . . . . . . . . . . Hover . | . . . . . . . . . . Flight . | . . . . . . . . . . Fastest Speed 50 | 50 120 120 260 260 190 190 260 50 50 Average Speed 220 | 103 128 132 355 260 219 251 260 81 98 Slowest Speed 540 | 120 190 260 400 260 540 470 260 260 120 Overloaded Moves . | . . . . . . . . . . Propulsion Burnouts . | . . . . . . . . . . Robots Hopped . | . . . . . . . . . . Cave-ins Triggered . | . . . . . . . . . . Exploration Rate (%) 40 | 4 56 37 28 102 59 17 3 94 3 Regions Visited 9 Branch Regions 2 Pre-discovered Areas . | . . . . . . . . . . Known Exits Taken 7 | 1 1 1 1 1 1 1 . . . Unknown Exits Taken . | . . . . . . . . . . Scrap Searched 2 | . . . . 2 . . . . . Spaces Dug . | . . . . . . . . . . Terrain Destroyed 203 | . 3 . 32 24 112 27 . 5 . Melee . | . . . . . . . . . . Projectile 5 | . . . . . 5 . . . . AOE 198 | . 3 . 32 24 107 27 . 5 . Terrain Rammed . | . . . . . . . . . . Walls Destroyed . | . . . . . . . . . . Machines Disabled . | . . . . . . . . . . Actions | -11 -10 -10 -9 -9 -8 -7 -6 -6 -6 --------- Run | Yrd Mat Min Mat Min Mat Fac Fac Was Fac Total 3913 | 68 503 136 362 886 782 708 141 136 191 Wait 223 | . 15 . . 188 . 8 . 4 8 Move 3245 | 47 415 126 304 682 673 607 123 119 149 Hop . | . . . . . . . . . . Pick Up 99 | 12 15 2 22 7 20 14 2 . 5 Fast Attach 6 | . 3 . . . . . . . 3 Attach 75 | 8 12 . 8 1 12 15 4 7 8 Detach 7 | 1 . . . . 1 4 1 . . Swap 18 | . 2 1 4 1 3 5 2 . . Drop 29 | . 3 . 4 3 11 6 2 . . Fire 190 | . 35 6 18 2 56 47 2 6 18 Melee . | . . . . . . . . . . Ram . | . . . . . . . . . . Kick 16 | . 3 1 2 2 6 2 . . . Crush . | . . . . . . . . . . Escape Stasis 5 | . . . . . . . 5 . . Rewire . | . . . . . . . . . . Trap . | . . . . . . . . . . Miscellaneous . | . . . . . . . . . . Route ------- -11/Scrapyard -10/Materials (discovered 3 exits: *Mat x2 / *Min) -10/Mines -9/Materials -9/Mines (discovered 2 exits: *Mat x2) -8/Materials -7/Factory -6/Factory -6/Waste -6/Factory History --------- Turn | Location | Event 3 | -11/Scrapyard | Identified exit to Materials 3 | -11/Scrapyard | Discovered exit to Materials (range 15) 71 | -11/Scrapyard | Entered Materials 71 | -10/Materials | Evolved 1 slot: Propulsion x1 211 | -10/Materials | Identified exit to Materials 211 | -10/Materials | Discovered exit to Materials (range 10) 310 | -10/Materials | Build established: Hacker-Mutant 403 | -10/Materials | Discovered exit to Materials (range 16) 721 | -10/Materials | Identified exit to Mines 721 | -10/Materials | Discovered exit to Mines (range 9) 751 | -10/Materials | Entered Mines 754 | -10/Mines | Met a Derelict bent on vengeance 868 | -10/Mines | Discovered exit to Materials (range 9) 939 | -10/Mines | Entered Materials 939 | -9/Materials | Evolved 2 slots: Propulsion x1, Utility x1 1903 | -9/Materials | Identified exit to Mines 1903 | -9/Materials | Discovered exit to Mines (range 15) 2118 | -9/Materials | Entered Mines 2121 | -9/Mines | Received a Mining Laser from a helpful Derelict 3384 | -9/Mines | Met a Derelict shopkeep closing up shop 3455 | -9/Mines | Identified exit to Materials 3455 | -9/Mines | Discovered exit to Materials (range 13) 3895 | -9/Mines | A weapon hastily lodged in a ceiling crevice suddenly fell to the ground 3974 | -9/Mines | Discovered exit to Materials (range 5) 4039 | -9/Mines | Found a hidden stash of uninstalled traps 4102 | -9/Mines | Entered Materials 4102 | -8/Materials | Evolved 2 slots: Utility x2 5616 | -8/Materials | Identified exit to Factory 5616 | -8/Materials | Discovered exit to Factory (range 12) 5769 | -8/Materials | Entered Factory 5769 | -7/Factory | Evolved 2 slots: Utility x2 6932 | -7/Factory | Lost 3 parts (2n1u) 7022 | -7/Factory | Lost 3 parts (1u2w) 7169 | -7/Factory | Identified exit to Factory 7169 | -7/Factory | Discovered exit to Factory (range 15) 7481 | -7/Factory | Entered another Factory area 7481 | -6/Factory | Evolved 2 slots: Power x1, Weapon x1 7790 | -6/Factory | Build established: Hacker-Bomber 7821 | -6/Factory | Sucked down chute 7821 | -6/Factory | Entered Waste 7822 | -6/Waste | Met a frightened Derelict 7840 | -6/Waste | Spotted C-40 Crusher 7868 | -6/Waste | Crushed by Compactor (1 part destroyed, 1 dropped) 7871 | -6/Waste | Crushed by Compactor (1 part destroyed, 1 dropped) 7874 | -6/Waste | Crushed by Compactor (1 part destroyed, 2 dropped) 7877 | -6/Waste | Crushed by Compactor (1 part destroyed, 2 dropped) 7882 | -6/Waste | Crushed by Compactor (1 part destroyed, 1 dropped) 7884 | -6/Waste | Spotted C-40 Crusher 7885 | -6/Waste | Crushed by Compactor (1 part destroyed, 1 dropped) 7888 | -6/Waste | Crushed by Compactor (1 part destroyed, 1 dropped) 7891 | -6/Waste | Crushed by Compactor (1 part destroyed, 2 dropped) 7894 | -6/Waste | Crushed by Compactor (1 part destroyed, 2 dropped) 7913 | -6/Waste | Spotted C-40 Crusher 7923 | -6/Waste | Spotted C-40 Crusher 7923 | -6/Waste | Spotted C-40 Crusher 7924 | -6/Waste | Spotted C-40 Crusher 7925 | -6/Waste | Lost 9 parts (2p2n2u3w) 7938 | -6/Waste | Identified exit to Factory 7938 | -6/Waste | Discovered exit to Factory (range 16) 7939 | -6/Waste | Crushed by Compactor (1 part destroyed) 7946 | -6/Waste | Entered Factory 8079 | -6/Factory | Spotted B-75 Beast 8121 | -6/Factory | Core integrity fell below 50% 8154 | -6/Factory | Self-destructed Last Messages --------------- 08127_ Acquired 14 matter. 08129_ Aluminum Leg destroyed. 08129_ Critical hit (Blast). 08132_ Battle Cannon destroyed. 08134_ Angular Momentum Engine destroyed. 08135_ Overheating: Matter decay (-7). 08135_ Lgt. Fission Core destroyed. 08135_ Acquired 7 matter. 08141_ Overheating: Energy bleed (-7). 08143_ Acquired 2 matter. 08145_ Imp. VSS Leg destroyed. 08145_ Critical hit (Burn: +37). 08145_ Pulse Rifle destroyed. 08148_ Hpw. Shock Rifle destroyed. 08149_ Critical hit (Burn: +37). 08151_ Imp. Carbon-fiber Leg destroyed. 08151_ VSS Leg blasted off. 08154_ Imp. VSS Leg destroyed. 08154_ G-50 Soldier Carbon-fiber Leg blasted off. Map ----- +----------------------------------------------------+ | ?????????????????????????????????????? | | ?????????????????????????????????????? | | ?????????????????????????????????????? | | ?????????????????????????????????????? | | ?????????????????????????????????????? | | ?????????????????????????????????????? | | ?????????????????????????????????????? | | ?????????????????????????????????????? | | ?????????????????????????????????????? | | ?????????????????????????????????????? | | ?????????????????????????????????????? | | ?????????????????????????????????????? | | ?????????????????????????????????????? | | ?????????#######?????????????????????? | | ?????????# #?????????????????????? | | ########## #?????????????????????? | | # # #?????????????????????? | | # # #????????????????????? | | # """ # #????????????????????? | | # """ # #????????????????????? | | # """ # #????????????????????? | | # # #????????????????????? | | # # ########?????????????? | | # # #?????????????# | | # + #??????????###" | | # # @ g #??????????# % | | # """ # % %g ############ | | # """ # g | | # """ ########;;;;;;;;#;;"""""" | | # #?# BB;#????# | | # """ #?# BB##??#####+# | | # """ #?# % #???# | | # """ #?# #???# """"" | | # #?# #???# """"" | | ##?#######?# #???# """"" | | ???????????# #???# """"" | | ???????????# #???# | | ???????????# #???# ""T"" | | ???????????# #???# """"" | | ???????????#################???####### | | ?????????????????????????????????????? | | ?????????????????????????????????????? | | ?????????????????????????????????????? | | ?????????????????????????????????????? | | ?????????????????????????????????????? | | ?????????????????????????????????????? | | ?????????????????????????????????????? | | ?????????????????????????????????????? | | ?????????????????????????????????????? | | ?????????????????????????????????????? | +----------------------------------------------------+ Best States ------------- Heat Dissipation 51 Coolant Potential 65 Energy Generation 31 Energy Capacity 450 Matter Stores 300 Matter Capacity 300 Sight Range 16 Terrain Scan Density 10 ECM Strength 1 Armor Coverage 225 Resistance: KI 55 Resistance: TH 35 Resistance: EX 35 Resistance: EM 35 Resistance: I 35 Resistance: S 35 Resistance: P 35 Power Shielding 33 Propulsion Shielding 33 Evasion (%) 55 Targeting Accuracy 8 Particle Charging 15 Offensive Hacking 20 Defensive Hacking 20 Item Schematics ----------------- None Robot Schematics ------------------ None Fabricated ------------ Nothing Alien Tech Used ----------------- None Achievements -------------- None Challenges ------------ None Game ------ Seed AdvancedAngularScythe Manual? 0 Play Time 00:46:10 Cumulative 46.9 hours Start 2024.08.15 @ 12:57:06 End 2024.08.15 @ 16:21:52 Sessions 1 Manual Loads 0 Difficulty Explorer Special Mode None Game No. 103 Rogue 20 Adventurer 46 Explorer 37 Win Type - Total 0 Types 0/0/0/0/0/0/0/0/0 Lore% 7 Gallery% 36 Achievement% 26 Wizard Run 0 Options --------- Layout 1 ASCII 0 Keyboard 0 Movement Mouse Keybinds 0 Fullscreen 1 Font 24/Smallcaps Map View 50x35 Zoom Use 0% Tactical HUD 1 Map Filters NONE Filters NONE Steam 1 RUN: 3aac4bc1-c57b-4125-a54c-a8468efbef66